Workbook

Sheet Valor de productos
A1: IdMaterial | B1: Nombre | C1: Vr Unidad
A2: 300338 | B2: (NO USAR DESCRIPCION ESTA COMO HERRAMIENTA) LINEA DE VIDA HORIZONTAL 18 M (HERRAMIENTA) | C2: 50
A3: 300341 | B3: (NO USAR DESCRIPCION ESTA COMO HERRAMIENTA) LINEA DE VIDA HORIZONTAL 30 M | C3: =C2+2 -> 52
A4: 300343 | B4: (NO USAR DESCRIPCION ESTA COMO HERRAMIENTA) LINEA DE VIDA VERTICAL 30 M (HERRAMIENTA) | C4: =C3+2 -> 54
A5: 301898 | B5: (NO USAR DESCRIPCION ESTA COMO HERRAMIENTA) PERRO CROSBY 1" (HERRAMIENTA MENOR) | C5: 56
A6: 300311 | B6: (NO USAR DESCRIPCION ESTA COMO HERRAMIENTA)ESLINGA EN Y GRADUABLE DOBLE TERMINAL PARA DETECCION CAIDAS L=1,8 MT REF 901794G
A7: 300299 | B7: (NO USAR DESCRIPCION ESTA COMO HERRAMIENTA)ESLINGA POSICIONAMIENTO Y RESTRICCION DE CAIDAS GRADUABLE REF 9017625G | C7: 2
A8: 300863 | B8: (NO USAR DESCRIPCION TROMPETA OVM 5/8" - 7 TORONES USAR TROMPETA OVM 5/8" - 6 Y 7 TORONES) | C8: 4
A9: 303725 | B9: (NO USAR DESCRIPCION) GUANTE CAUCHO N° 9 CAL 35 | C9: 6
A10: 300968 | B10: (NO USAR ESCOGER ITEMS DIFERENCIADO POR TALLAS) CAMISA MANGA LARGA LOGO PYT (BLANCA) HOMBRE
A11: 304068 | B11: (NO USAR ESTA DECRIPCION ABRAZADERA 3/8" ) | C11: 2
A12: 301228 | B12: (NO USAR ESTA DESCRIPCION ABRAZADERA 5/8") | C12: 4
A13: 300198 | B13: (NO USAR ESTA DESCRIPCION ESTA EN HERRAMIENTA) CARGADOR DE BATERIA | C13: 6
A14: 301205 | B14: (NO USAR PARA SOLICITUD DE PEDIDOS, ESCOGER ITEMS DIFERENCIADO POR TALLAS) OVEROL 2 PIEZAS BLUE JEAN | C14: 8
A15: 300351 | B15: (NO USAR PARA SOLICITUD DE PEDIDOS, ESCOGER ITEMS DIFERENCIADO POR TALLAS) OVEROL JEAN TIPO SOLDADOR | C15: 10
A16: 301297 | B16: (NO USAR PARA SOLICITUD DE PEDIDOS, ESCOGER ITEMS DIFERENCIADO POR TALLAS)BOTA CUERO DIELECTRICA | C16: 12
A17: 300277 | B17: (NO USAR PARA SOLICITUD DE PEDIDOS, ESCOGER ITEMS DIFERENCIADO POR TALLAS)BOTA CUERO PUNTA ACERO | C17: 14
A18: 300278 | B18: (NO USAR PARA SOLICITUD DE PEDIDOS, ESCOGER ITEMS DIFERENCIADO POR TALLAS)BOTA TIPO INGENIERO CUERO PUNTA ACERO | C18: 16
A19: 300279 | B19: (NO USAR PARA SOLICITUD DE PEDIDOS, ESCOGER ITEMS DIFERENCIADO POR TALLAS)BOTA TIPO SOLDADOR PUNTA DE ACERO | C19: 18
A20: 302213 | B20: (NO USAR, ESCOGER ITEMS DIFERENCIADO POR TALLAS) CAMISA MANGA LARGA LOGO PYT (BLANCA) MUJER | C20: 20
A21: 302084 | B21: (NO USAR, ESCOGER ITEMS DIFERENCIADO POR TALLAS) CAMISA MANGA LARGA LOGO PYT (VERDE) HOMBRE | C21: 22
A22: 300676 | B22: (No utilizar - FILTRO COMBUSTIBLE FLEETGUARD FF5052 WUXI BAIFA 106) | C22: 24
A23: 505859 | B23: (NO UTILIZAR CAMA MADERA) | C23: 26
A24: 400158 | B24: (NO UTILIZAR DESCRIPCION SE MANEJA COMO HERRAMIENTA) RADIO COMUNICACIÓN CON CARGADOR | C24: 28
A25: 500432 | B25: (NO UTILIZAR ESCRITORIO METALICO) | C25: 30
A26: 300927 | B26: (NO UTILIZAR ESTA CON EL CODIGO 350069 -CONCRELISTO POLVO MORTERO X 50 KG) | C26: 32
A27: 300073 | B27: (NO UTILIZAR ESTA CON EL CODIGO 350069 -EUCO CONCRELISTO X 48 KG) | C27: 34
A28: 304682 | B28: (NO UTILIZAR ESTA DESCRIPCION TORNILLO ALLEN CABEZA CILINDRICA RF 3/16" X 1") | C28: 36
A29: 400210 | B29: (NO UTILIZAR ESTE CODIGO ESTA EN HERRAMIENTA MANOMETRO 700 PSI) | C29: 38
A30: 400193 | B30: (NO UTILIZAR ESTE CODIGO ESTA EN HERRAMIENTA MANOMETRO 8500 PSI) | C30: 40
A31: 300176 | B31: (NO UTILIZAR ESTE ITEM CABLE DUPLEX 3 X 10) | C31: 42
A32: 506228 | B32: (NO UTILIZAR ESTE ITEM CAMA 1,20 X 1,90 TIPO BASE CAMA) | C32: 44
A33: 303763 | B33: (NO UTILIZAR ESTE ITEM CAMISA BLUE JEAN CINTA REFLECTIVA NARANJA LOGO PYT TALLA L (TALLA 40)) | C33: 46
A34: 303762 | B34: (NO UTILIZAR ESTE ITEM CAMISA BLUE JEAN CINTA REFLECTIVA NARANJA LOGO PYT TALLA M (TALLA 38)) | C34: 48
A35: 306166 | B35: (NO UTILIZAR ESTE ITEM CAMISA BLUE JEAN CINTA REFLECTIVA NARANJA LOGO PYT TALLA S (TALLA 30)) | C35: 50
A36: 303761 | B36: (NO UTILIZAR ESTE ITEM CAMISA BLUE JEAN CINTA REFLECTIVA NARANJA LOGO PYT TALLA S (TALLA 36)) | C36: 52
A37: 303764 | B37: (NO UTILIZAR ESTE ITEM CAMISA BLUE JEAN CINTA REFLECTIVA NARANJA LOGO PYT TALLA XL (TALLA 42)) | C37: 54
A38: 303754 | B38: (NO UTILIZAR ESTE ITEM CAMISA BLUE JEAN CINTA REFLECTIVA ROJO LOGO PYT TALLA L (TALLA 40)) | C38: 56
A39: 303753 | B39: (NO UTILIZAR ESTE ITEM CAMISA BLUE JEAN CINTA REFLECTIVA ROJO LOGO PYT TALLA M (TALLA 38)) | C39: 58
A40: 306164 | B40: (NO UTILIZAR ESTE ITEM CAMISA BLUE JEAN CINTA REFLECTIVA ROJO LOGO PYT TALLA S (TALLA 30)) | C40: 60
A41: 306165 | B41: (NO UTILIZAR ESTE ITEM CAMISA BLUE JEAN CINTA REFLECTIVA ROJO LOGO PYT TALLA S (TALLA 32)) | C41: 62
A42: 303752 | B42: (NO UTILIZAR ESTE ITEM CAMISA BLUE JEAN CINTA REFLECTIVA ROJO LOGO PYT TALLA S (TALLA 36)) | C42: 64
A43: 303755 | B43: (NO UTILIZAR ESTE ITEM CAMISA BLUE JEAN CINTA REFLECTIVA ROJO LOGO PYT TALLA XL (TALLA 42)) | C43: 66
A44: 303745 | B44: (NO UTILIZAR ESTE ITEM CAMISA BLUE JEAN CINTA REFLECTIVA VERDE LOGO PYT TALLA L (TALLA 40)) | C44: 68
A45: 303744 | B45: (NO UTILIZAR ESTE ITEM CAMISA BLUE JEAN CINTA REFLECTIVA VERDE LOGO PYT TALLA M (TALLA 38)) | C45: 70
A46: 303746 | B46: (NO UTILIZAR ESTE ITEM CAMISA BLUE JEAN CINTA REFLECTIVA VERDE LOGO PYT TALLA XL (TALLA 42))
A47: 303773 | B47: (NO UTILIZAR ESTE ITEM ESTA DOBLE TAPA DOBLE INTERPERIE M&D) | C47: 2
A48: 300243 | B48: (NO UTILIZAR ESTE ITEM ESTA EN EL MODULO DE HERRAMIENTA REFLECTOR SODIO 400 W) | C48: 4
A49: 300218 | B49: (NO UTILIZAR ESTE ITEM ESTA EN HERRAMIENTA EXTENSION 110V EN CABLE 2 X 12) | C49: 6
A50: 303850 | B50: (NO UTILIZAR ESTE ITEM ESTA EN HERRAMIENTAS PERRO GALVANIZADO 1/8") | C50: 8
A51: 500270 | B51: (NO UTILIZAR ESTE ITEM ESTA REPETIDO CODIGO 500269 BARRA DE ACERO (GENERICO)) | C51: 10
A52: 500223 | B52: (NO UTILIZAR ESTE ITEM ESTA REPETIDO CON EL COG 500222 PALA REDONDA CON CABO (GENERICO)) | C52: 12
A53: 301503 | B53: (NO UTILIZAR ESTE ITEM ESTA REPETIDO USAR EL 304640 LLANTA POWERBUGGY MACIZA 480 / 400 8 NP: 4211321) | C53: 14
A54: 506003 | B54: (NO UTILIZAR ESTE ITEM EXTENSIÓN CABLE ENCAUCHETADO TRIFASICO 10 X 3 X 20 M) | C54: 16
A55: 500689 | B55: (NO UTILIZAR ESTE ITEM EXTENSIÓN EN CABLE ENCAUCHETADO 3 X 10 X 20 M) | C55: 18
A56: 303189 | B56: (NO UTILIZAR ESTE ITEM GUANTE VAQUETA REFORZADO INDICE Y PULGAR) | C56: 20
A57: 301560 | B57: (NO UTILIZAR ESTE ITEM GUANTES DIELECTRICOS CLASE 02 08) | C57: 22
A58: 505973 | B58: (NO UTILIZAR ESTE ITEM LLAVE MIXTA DE 42 MM (STANLEY)) | C58: 24
A59: 303666 | B59: (NO UTILIZAR ESTE ITEM PANTALON BLUE JEAN CINTA REFLECTIVA NARANJA LOGO PYT TALLA (TALLA 28)) | C59: 26
A60: 303789 | B60: (NO UTILIZAR ESTE ITEM PANTALON BLUE JEAN CINTA REFLECTIVA NARANJA LOGO PYT TALLA (TALLA 30)) | C60: 28
A61: 303790 | B61: (NO UTILIZAR ESTE ITEM PANTALON BLUE JEAN CINTA REFLECTIVA NARANJA LOGO PYT TALLA (TALLA 32)) | C61: 30
A62: 303791 | B62: (NO UTILIZAR ESTE ITEM PANTALON BLUE JEAN CINTA REFLECTIVA NARANJA LOGO PYT TALLA (TALLA 34)) | C62: 32
A63: 303792 | B63: (NO UTILIZAR ESTE ITEM PANTALON BLUE JEAN CINTA REFLECTIVA NARANJA LOGO PYT TALLA (TALLA 38)) | C63: 34
A64: 303664 | B64: (NO UTILIZAR ESTE ITEM PANTALON BLUE JEAN CINTA REFLECTIVA ROJO LOGO PYT TALLA (TALLA 28)) | C64: 36
A65: 303767 | B65: (NO UTILIZAR ESTE ITEM PANTALON BLUE JEAN CINTA REFLECTIVA ROJO LOGO PYT TALLA (TALLA 30)) | C65: 38
A66: 303770 | B66: (NO UTILIZAR ESTE ITEM PANTALON BLUE JEAN CINTA REFLECTIVA ROJO LOGO PYT TALLA (TALLA 32)) | C66: 40
A67: 303769 | B67: (NO UTILIZAR ESTE ITEM PANTALON BLUE JEAN CINTA REFLECTIVA ROJO LOGO PYT TALLA (TALLA 34)) | C67: 42
A68: 303771 | B68: (NO UTILIZAR ESTE ITEM PANTALON BLUE JEAN CINTA REFLECTIVA ROJO LOGO PYT TALLA (TALLA 38)) | C68: =C67+2 -> 44
A69: 303665 | B69: (NO UTILIZAR ESTE ITEM PANTALON BLUE JEAN CINTA REFLECTIVA VERDE LOGO PYT TALLA (TALLA 28)) | C69: 46
A70: 303777 | B70: (NO UTILIZAR ESTE ITEM PANTALON BLUE JEAN CINTA REFLECTIVA VERDE LOGO PYT TALLA (TALLA 32))
A71: 303778 | B71: (NO UTILIZAR ESTE ITEM PANTALON BLUE JEAN CINTA REFLECTIVA VERDE LOGO PYT TALLA (TALLA 34)) | C71: 2
A72: 304158 | B72: (NO UTILIZAR ESTE ITEM PANTALON BLUE JEAN CINTA REFLECTIVA VERDE LOGO PYT TALLA (TALLA 40)) | C72: 4
A73: 303009 | B73: (NO UTILIZAR ESTE ITEM PUNTA 24 MM / NORTHROCK) | C73: 6
A74: 305656 | B74: (NO UTILIZAR ESTE ITEM SELLO PYT RECIBIDO PARA VERIFICACION) | C74: 8
A75: 304667 | B75: (NO UTILIZAR ESTE ITEM TORNILLO ALLEN CABEZA CILINDRICA 1/4" X 1" ROSCA FINA") | C75: 10
A76: 500474 | B76: (NO UTILIZAR ESTE ITEM UTILIZAR CAMARA DIGITAL ANTES VIDEO CAMARA CANON) | C76: 12
A77: 304870 | B77: (NO UTILIZAR ESTE ITEM VARILLA CHIPA 3/8" X 500 KG) | C77: 14
A78: 300014 | B78: (NO UTILIZAR ESTE ITEM VARILLA CORRUGADA 1") | C78: 16
A79: 300015 | B79: (NO UTILIZAR ESTE ITEM VARILLA CORRUGADA 1/2") | C79: 18
A80: 300036 | B80: (NO UTILIZAR ESTE ITEM VARILLA CORRUGADA 1-1/4") | C80: 20
A81: 300016 | B81: (NO UTILIZAR ESTE ITEM VARILLA CORRUGADA 3/4") | C81: 22
A82: 301846 | B82: (NO UTILIZAR ESTE ITEM VARILLA CORRUGADA 3/8" 37000 PSI) | C82: 24
A83: 300060 | B83: (NO UTILIZAR ESTE ITEM VARILLA CORRUGADA 3/8") | C83: 26
A84: 300017 | B84: (NO UTILIZAR ESTE ITEM VARILLA CORRUGADA 5/8") | C84: 28
A85: 300062 | B85: (NO UTILIZAR ESTE ITEM VARILLA CORRUGADA 7/8") | C85: 30
A86: 300027 | B86: (NO UTILIZAR ESTE ITEM VARILLA LISA ACERO 1/2") | C86: 32
A87: 300028 | B87: (NO UTILIZAR ESTE ITEM VARILLA LISA ACERO 1/4") | C87: 34
A88: 300034 | B88: (NO UTILIZAR ESTE ITEM VARILLA LISA ACERO 3/8") | C88: 36
A89: 300530 | B89: (NO UTILIZAR ESTE TIEM LINTERNA RECARGABLE (HERRAMIENTA)) | C89: 38
A90: 304287 | B90: (SOLO USAR EN RUTA DEL SOL) FILTRO COMBUSTIBLE PARA ATLAS COPCO NEGRO SIN REFERENCIAS | C90: 40
A91: 303280 | B91: ABRAZADERA 1" 3024 | C91: 42
A92: 303720 | B92: ABRAZADERA 1" PARED | C92: 44
A93: 303277 | B93: ABRAZADERA 1/2" 3006 | C93: 46
A94: 303279 | B94: ABRAZADERA 1/2" 3024 | C94: 48
A95: 303322 | B95: ABRAZADERA 1-3/4" | C95: 50
A96: 304493 | B96: ABRAZADERA 2-1/2" | C96: 52
A97: 303278 | B97: ABRAZADERA 3/4" 3020
A98: 304268 | B98: ABRAZADERA 4" COLA DE RATON / BOMBA CONTRETO | C98: 2
A99: 505843 | B99: ABRAZADERA 5" | C99: 4
A100: 302825 | B100: ABRAZADERA 5" COLA DE RATON / BOMBA CONTRETO | C100: 6
A101: 302997 | B101: ABRAZADERA 60 CM PARA TANQUE DE COMBUSTIBLE | C101: 8
A102: 304593 | B102: ABRAZADERA CREMALLERA 1-1/2" / 2-1/4" | C102: 10
A103: 304194 | B103: ABRAZADERA CREMALLERA 2-1/16" A 3" | C103: 12
A104: 304195 | B104: ABRAZADERA CREMALLERA 2-9/16" A 3-1/2" | C104: 14
A105: 301489 | B105: ABRAZADERA CREMALLERA 3/16" | C105: 16
A106: 303526 | B106: ABRAZADERA CREMALLERA 3/8" - 3/4" | C106: 18
A107: 303528 | B107: ABRAZADERA CREMALLERA 5/8" - 1-1/4" | C107: 20
A108: 303524 | B108: ABRAZADERA CREMALLERA No 04 (1/4" - 1/4") | C108: 22
A109: 303525 | B109: ABRAZADERA CREMALLERA No 06 (5/16") | C109: 24
A110: 303527 | B110: ABRAZADERA CREMALLERA No 08 (1/2") | C110: 26
A111: 302627 | B111: ABRAZADERA DCG230 | C111: 28
A112: 506145 | B112: ABRAZADERA DOBLE CON TORNILLO PARA ANDAMIO ESCALERA DE 38 A 48 MM | C112: 30
A113: 303196 | B113: ABRAZADERA GALV 1" | C113: 32
A114: 302935 | B114: ABRAZADERA GALV 1/2" | C114: 34
A115: 302264 | B115: ABRAZADERA GALV 1-1/2" PARA TUBO 48 MM | C115: 36
A116: 304605 | B116: ABRAZADERA GALV 3/4" CONDUIT | C116: 38
A117: 303355 | B117: ABRAZADERA GALV 3/8" | C117: 40
A118: 300375 | B118: ABRAZADERA GALV 3-1/16" - 4" | C118: 42
A119: 301613 | B119: ABRAZADERA GALV 4" | C119: 44
A120: 300477 | B120: ABRAZADERA INDUSTRIAL T509 | C120: 46
A121: 301996 | B121: ABRAZADERA INDUSTRIAL T510 | C121: 48
A122: 301995 | B122: ABRAZADERA INDUSTRIAL T511 | C122: 50
A123: 303099 | B123: ABRAZADERA INDUSTRIAL T514 | C123: 52
A124: 303098 | B124: ABRAZADERA INDUSTRIAL T517 | C124: 54
A125: 302662 | B125: ABRAZADERA INDUSTRIAL T523 | C125: 56
A126: 304060 | B126: ABRAZADERA INDUSTRIAL TS501 | C126: 58
A127: 304058 | B127: ABRAZADERA INOX 10-10 | C127: 60
A128: 303112 | B128: ABRAZADERA INOX 9"1/4" X 20 D
A129: 301264 | B129: ABRAZADERA MANGUERA 3/4"
A130: 303110 | B130: ABRAZADERA MAX FORD 5 | C130: 2
A131: 304455 | B131: ABRAZADERA OVM PARA CABLES TIRANTES 44,5 CM X 6" | C131: 4
A132: 304464 | B132: ABRAZADERA OVM PARA CABLES TIRANTES 44,5 CM X 8" | C132: =C131+2 -> 6
A133: 304651 | B133: ABRAZADERA TIPO U 1-1/2" ALAM 1/4 | C133: 8
A134: 304652 | B134: ABRAZADERA TIPO U 1-1/4" ALAM 1/4" | C134: 10
A135: 304653 | B135: ABRAZADERA TIPO U 1-5/8" ALAM 1/4" | C135: 12
A136: 304654 | B136: ABRAZADERA TIPO U 2" ALAM 1/4" | C136: 14
A137: 304499 | B137: ABRAZADERA TIPO U 2-1/2" ALAM 1/4" | C137: 16
A138: 304655 | B138: ABRAZADERA TIPO U 2-1/2" ALAM 3/8" | C138: 18
A139: 304656 | B139: ABRAZADERA TIPO U 3" ALAM 3/8" | C139: 20
A140: 305642 | B140: ABRAZADERA TIPO U 3-1/2" ALAM 1/4" | C140: 22
A141: 304657 | B141: ABRAZADERA TIPO U 3-1/2" ALAM 3/8" | C141: 24
A142: 305002 | B142: ABRAZADERA TIPO U 4" ALAM 1/4" | C142: 26
A143: 304658 | B143: ABRAZADERA TIPO U 4" ALAM 3/8" | C143: 28
A144: 506157 | B144: ACCESORIO NEUMATICO X 5 | C144: 30
A145: 301731 | B145: ACCESORIOS PARA BAÑO | C145: 32
A146: 301860 | B146: ACCESORIOS PARA MOTORTOOL X 1/4" X 12 PIEZAS | C146: 34
A147: 303490 | B147: ACEITE 10 W 30
A148: 302989 | B148: ACEITE 10 W 40
A149: 300097 | B149: ACEITE 15 W 40 X | C149: 2
A150: 300098 | B150: ACEITE 2 TIEMPOS | C150: 4
A151: 300099 | B151: ACEITE 20 W 50 | C151: 6
A152: 301638 | B152: ACEITE 80 W 40 | C152: 8
A153: 300105 | B153: ACEITE 80 W 90 | C153: 10
A154: 302988 | B154: ACEITE 80 W 91 | C154: 12
A155: 301639 | B155: ACEITE ATF D/M | C155: 14
A156: 313359 | B156: ACEITE DIELECTRICO ISO 32 | C156: 16
A157: 300100 | B157: ACEITE HIDRAULICO TIPO TELLUS 68 | C157: 18
A158: 302750 | B158: ACEITE ISO 220 PARA REDUCTOR DE ENGRANAJES | C158: 20
A159: 300101 | B159: ACEITE MEROPA 150 | C159: 22
A160: 306289 | B160: ACEITE MEROPA 220 | C160: 24
A161: 306288 | B161: ACEITE MEROPA 320 | C161: 26
A162: 302659 | B162: ACEITE MOBILFLUID 424-1/5 | C162: 28
A163: 306286 | B163: ACEITE MONOGRADO (MOTOR LANCHA) | C163: 30
A164: 300102 | B164: ACEITE PRO TEC 36899706 | C164: 32
A165: 301587 | B165: ACEITE SAE 50 HD DIESEL Y GASOLINA | C165: 34
A166: 304558 | B166: ACEITE SAE 50 PARA TRANSMISIONES | C166: 36
A167: 300103 | B167: ACEITE SAE 50 SF GASOLINA | C167: 38
A168: 304610 | B168: ACEITE SAE 85 W 140 | C168: 40
A169: 300104 | B169: ACEITE SOLUBLE | C169: 42
A170: 300106 | B170: ACEITE TEXMATIC FLUID | C170: 44
A171: 301120 | B171: ACEITE TIPO TELLUS 37 | C171: 46
A172: 500327 | B172: ACEITERA (GENERICO) | C172: 48
A173: 302558 | B173: ACETATO CARTA X 100 UND | C173: 50
A174: 300957 | B174: ACETILENO | C174: 52
A175: 300805 | B175: ACIDO DE BATERIA X 1 LT | C175: 54
A176: 300107 | B176: ACIDO MURIATICO | C176: 56
A177: 304137 | B177: ACIDO NITRICO | C177: 58
A178: 306168 | B178: ACOPLADOR OVM PD PARA TORON 13 MM (1/2") | C178: 60
A179: 306169 | B179: ACOPLADOR OVM PD PARA TORON 15 MM (5/8") | C179: 62
A180: 301019 | B180: ACOPLE 1" X 3/4" | C180: 64
A181: 303117 | B181: ACOPLE 3/8" X 11/16 | C181: 66
A182: 303119 | B182: ACOPLE 5/16" X 5/8" | C182: 68
A183: 303120 | B183: ACOPLE 5/16" X 5/8" X 90 GRADOS | C183: 70
A184: 301640 | B184: ACOPLE ALUMINIO 2" | C184: 72
A185: 301730 | B185: ACOPLE ALUMINIO 2-1/2" | C185: 74
A186: 301642 | B186: ACOPLE ALUMINIO 3" | C186: 76
A187: 303570 | B187: ACOPLE FLEXIBLE ENTRE DOS / PLUMA GRUA | C187: 78
A188: 303921 | B188: ACOPLE GALV 1/2" PARA COMPRESOR Y PISTOLA DE PINTAR | C188: 80
A189: 303460 | B189: ACOPLE GALV 1/2" X 40 CM | C189: 82
A190: 301644 | B190: ACOPLE GALV 4" | C190: 84
A191: 303805 | B191: ACOPLE HEMBRA R206 X 3/8" | C191: 86
A192: 306458 | B192: ACOPLE HIDRAULICO 1/2" R/2 | C192: 88
A193: 304659 | B193: ACOPLE HIDRAULICO 16 MM | C193: 90
A194: 304056 | B194: ACOPLE HIDRAULICO 3/4" MACHO | C194: 92
A195: 301645 | B195: ACOPLE HIDRAULICO 3/8" X 3/8" HEMBRA | C195: 94
A196: 301048 | B196: ACOPLE HIDRAULICO C-604 3/8" NPT MACHO/HEMBRA | C196: =C195+2 -> 96
A197: 315747 | B197: ACOPLE HIDRAULICO CH-604 3/8" NPT MACHO | C197: 98
A198: 315746 | B198: ACOPLE HIDRAULICO CR-400 3/8" NPT HEMBRA | C198: 100
A199: 301515 | B199: ACOPLE HIDRAULICO EN T 3/8" | C199: 102
A200: 304170 | B200: ACOPLE INYECTOR DE GRASA | C200: 104
... 17102 more rows

Sheet ABC x Valorizacion
E1: Valorizacion del stock Choconta | K1: Val Total Stock | L1: =SUM(J209:J1491) -> $ 0
A3: CHOCONTA
B4: NombreTipoMaterial | C4: grupo | D4: Id Material | E4: Nombre Material | F4: Entradas | G4: Salidas | H4: Saldo | I4: Val unidad | J4: Val de stock | K4: %stock Total | L4: 1
B5: ANDAMIOS | C5: ANDAMIOS DE CARGA | E5: Diagonal 1,5 x 1,5m | F5: 1924.00 | G5: 1239.00 | H5: 685.00 | I5: 2542 | L5: 2
B6: ANDAMIOS | C6: ANDAMIOS DE CARGA | E6: Diagonal 1,5 x 1m | F6: 86.00 | G6: 60.00 | H6: 26.00 | I6: 2544 | L6: 3
B7: ANDAMIOS | C7: ANDAMIOS DE CARGA | E7: Diagonal 2,4 x 1,5m | F7: 656.00 | G7: 435.00 | H7: 221.00 | I7: 2546 | L7: 4
B8: ANDAMIOS | C8: ANDAMIOS DE CARGA | E8: Gata base | F8: 1421.00 | G8: 546.00 | H8: 875.00 | I8: 4998 | L8: 5
B9: ANDAMIOS | C9: ANDAMIOS DE CARGA | E9: Gata U | F9: 2050.00 | G9: 569.00 | H9: 1481.00 | I9: 5000 | L9: 6
B10: ANDAMIOS | C10: ANDAMIOS DE CARGA | E10: Horizontal 0,9m | F10: 23.00 | G10: 0.00 | H10: 23.00 | I10: 5376 | L10: 7
B11: ANDAMIOS | C11: ANDAMIOS DE CARGA | E11: Horizontal 1,5m | F11: 2397.00 | G11: 1913.00 | H11: 484.00 | I11: 5378 | L11: 8
B12: ANDAMIOS | C12: ANDAMIOS DE CARGA | E12: Horizontal 2,4m | F12: 1205.00 | G12: 560.00 | H12: 645.00 | I12: 5380 | L12: 9
B13: ANDAMIOS | C13: ANDAMIOS DE CARGA | E13: PEATONAL GATA BASE J48601 | F13: 4.00 | G13: 0.00 | H13: 4.00 | I13: 8628 | L13: 10
B14: ANDAMIOS | C14: ANDAMIOS DE CARGA | E14: PEATONAL HORIZINTAL 2,4 M H66240 | F14: 12.00 | G14: 0.00 | H14: 12.00 | I14: 8632 | L14: 11
B15: ANDAMIOS | C15: ANDAMIOS DE CARGA | E15: PEATONAL VERTICAL 1,5 M V60150 | F15: 47.00 | G15: 0.00 | H15: 47.00 | I15: 8638 | L15: 12
B16: ANDAMIOS | C16: ANDAMIOS DE CARGA | E16: Sub-Vertical 20cm | F16: 693.00 | G16: 339.00 | H16: 354.00 | I16: 11950 | L16: 13
B17: ANDAMIOS | C17: ANDAMIOS DE CARGA | E17: Sub-Vertical 25cm | F17: 1020.00 | G17: 80.00 | H17: 940.00 | I17: 11952 | L17: 14
B18: ANDAMIOS | C18: ANDAMIOS DE CARGA | E18: Sub-Vertical 50cm | F18: 440.00 | G18: 186.00 | H18: 254.00 | I18: 11954 | L18: 15
B19: ANDAMIOS | C19: ANDAMIOS DE CARGA | E19: Vertical 1,5m | F19: 1234.00 | G19: 923.00 | H19: 311.00 | L19: 16
B20: ANDAMIOS | C20: ANDAMIOS DE CARGA | E20: Vertical 1m | F20: 581.00 | G20: 292.00 | H20: 289.00 | L20: 17
B21: ANDAMIOS | C21: ANDAMIOS DE CARGA | E21: Vertical 2m | F21: 898.00 | G21: 896.00 | H21: 2.00 | L21: 18
B22: ANDAMIOS | C22: ANDAMIOS DE CARGA | E22: Viga Bracket | F22: 51.00 | G22: 1.00 | H22: 50.00 | L22: 19
B23: EQUIPOS | C23: MEDICION Y ENSAYO | E23: ALCOHOLIMETRO | F23: 3.00 | G23: 2.00 | H23: 1.00 | I23: 140 | L23: 20
B24: EQUIPOS | C24: MEDICION Y ENSAYO | E24: BALANZA ANALOGA | F24: 1.00 | G24: 0.00 | H24: 1.00 | I24: 24 | L24: 21
B25: EQUIPOS | C25: MEDICION Y ENSAYO | E25: BALANZA DIGITAL 20 KG | F25: 1.00 | G25: 0.00 | H25: 1.00 | I25: 28 | L25: 22
B26: EQUIPOS | C26: MEDICION Y ENSAYO | E26: BALANZA DIGITAL 30 KG | F26: 2.00 | G26: 0.00 | H26: 2.00 | I26: 30 | L26: 23
B27: EQUIPOS | C27: MEDICION Y ENSAYO | E27: BALANZA ROMANA 100 KG | F27: 1.00 | G27: 0.00 | H27: 1.00 | I27: 38 | L27: 24
B28: EQUIPOS | C28: CAMPAMENTO | E28: BAÑO MOVIL | F28: 54.00 | G28: 27.00 | H28: 27.00 | I28: 8 | L28: 25
B29: EQUIPOS | C29: MEDICION Y ENSAYO | E29: BASCULA PLATAFORMA 150 KG | F29: 4.00 | G29: 2.00 | H29: 2.00 | I29: 80 | L29: 26
B30: EQUIPOS | C30: MEDICION Y ENSAYO | E30: BASCULA PLATAFORMA 200 KG | F30: 2.00 | G30: 0.00 | H30: 2.00 | I30: 82 | L30: 27
B31: EQUIPOS | C31: MEDICION Y ENSAYO | E31: BASCULA PLATAFORMA 300 KG | F31: 2.00 | G31: 0.00 | H31: 2.00 | I31: 84 | L31: 28
B32: EQUIPOS | C32: MEDICION Y ENSAYO | E32: BASCULA PLATAFORMA 500 KG | F32: 2.00 | G32: 0.00 | H32: 2.00 | I32: 86 | L32: 29
B33: EQUIPOS | C33: VEHICULOS | E33: BICICLETA | F33: 1.00 | G33: 0.00 | H33: 1.00 | I33: 94 | L33: 30
B34: EQUIPOS | C34: BOMBAS | E34: BOMBA ELECTRICA SUCCION 2" | F34: 3.00 | G34: 1.00 | H34: 2.00 | I34: 82 | L34: 31
B35: EQUIPOS | C35: BOMBAS | E35: BOMBA ELECTRICA SUMERGIBLE 1" | F35: 3.00 | G35: 0.00 | H35: 3.00 | I35: 84 | L35: 32
B36: EQUIPOS | C36: BOMBAS | E36: BOMBA ELECTRICA SUMERGIBLE 2" | F36: 8.00 | G36: 3.00 | H36: 5.00 | I36: 86 | L36: 33
B37: EQUIPOS | C37: BOMBAS | E37: BOMBA ELECTRICA SUMERGIBLE 3" | F37: 28.00 | G37: 14.00 | H37: 14.00 | I37: 88 | L37: 34
B38: EQUIPOS | C38: CONCRETO EQ | E38: BOMBA ESTACIONARIA DE CONCRETO | F38: 12.00 | G38: 10.00 | H38: 2.00 | I38: 92 | L38: 35
B39: EQUIPOS | C39: BOMBAS | E39: BOMBA HIDRAULICA ELECTRICA | F39: 54.00 | G39: 40.00 | H39: 14.00 | I39: 100 | L39: 36
B40: EQUIPOS | C40: BOMBAS | E40: BOMBA HIDRAULICA GASOLINA | F40: 3.00 | G40: 1.00 | H40: 2.00 | I40: 102 | L40: 37
B41: EQUIPOS | C41: BOMBAS | E41: BOMBA HIDRAULICA MANUAL | F41: 13.00 | G41: 10.00 | H41: 3.00 | I41: 104 | L41: 38
B42: EQUIPOS | C42: TENSIONAMIENTO EQ | E42: BOMBA INYECCION DE CERA EPOXICA | F42: 1.00 | G42: 0.00 | H42: 1.00 | I42: 112 | L42: 39
B43: EQUIPOS | C43: TENSIONAMIENTO EQ | E43: BOMBA INYECCION LECHADA | F43: 14.00 | G43: 10.00 | H43: 4.00 | I43: 116 | L43: 40
B44: EQUIPOS | C44: TENSIONAMIENTO EQ | E44: BOMBA INYECCION LECHADA MANUAL | F44: 3.00 | G44: 0.00 | H44: 3.00 | I44: 118 | L44: 41
B45: EQUIPOS | C45: VEHICULOS | E45: BUSETA | F45: 9.00 | G45: 8.00 | H45: 1.00 | I45: 36 | L45: 42
B46: EQUIPOS | C46: EQUIPOS MANUALES Y ELECTRICOS | E46: CALADORA INDUSTRIAL 700 W | F46: 2.00 | G46: 0.00 | H46: 2.00 | I46: 342 | L46: 43
B47: EQUIPOS | C47: VEHICULOS | E47: CAMION | F47: 6.00 | G47: 5.00 | H47: 1.00 | I47: 396 | L47: 44
B48: EQUIPOS | C48: VEHICULOS | E48: CAMIONETA | F48: 18.00 | G48: 17.00 | H48: 1.00 | I48: 398 | L48: 45
B49: EQUIPOS | C49: VEHICULOS | E49: CANOA | F49: 3.00 | G49: 2.00 | H49: 1.00 | I49: 592 | L49: 46
B50: EQUIPOS | C50: EQUIPOS ESPECIALES | E50: CARRO DE AVANCE | F50: 26.00 | G50: 12.00 | H50: 14.00 | I50: 698 | L50: 47
B51: EQUIPOS | C51: IZAJE DE MATERIALES | E51: CHASIS SOPORTE TORREGRUA | F51: 1.00 | G51: 0.00 | H51: 1.00 | I51: 1006 | L51: 48
B52: EQUIPOS | C52: CILINDROS | E52: CILINDRO DOBLE ACCION (EMPUJE) | F52: 39.00 | G52: 30.00 | H52: 9.00 | I52: 1056 | L52: 49
B53: EQUIPOS | C53: CILINDROS | E53: CILINDRO EMBOLO HUECO | F53: 19.00 | G53: 13.00 | H53: 6.00 | I53: 1060 | L53: 50
B54: EQUIPOS | C54: CILINDROS | E54: CILINDRO LEVANTE 20 TON | F54: 2.00 | G54: 0.00 | H54: 2.00 | I54: 1076 | L54: 51
B55: EQUIPOS | C55: CILINDROS | E55: CILINDRO LEVANTE 30 TON | F55: 8.00 | G55: 4.00 | H55: 4.00 | I55: 1078 | L55: 52
B56: EQUIPOS | C56: CILINDROS | E56: CILINDRO LEVANTE 50 TON | F56: 94.00 | G56: 55.00 | H56: 39.00 | I56: 1080 | L56: 53
B57: EQUIPOS | C57: CILINDROS | E57: CILINDRO MECANICO | F57: 2.00 | G57: 0.00 | H57: 2.00 | I57: 1082 | L57: 54
B58: EQUIPOS | C58: EQUIPOS MANUALES Y ELECTRICOS | E58: CIZALLA DE BANCO | F58: 2.00 | G58: 0.00 | H58: 2.00 | I58: 1202 | L58: 55
B59: EQUIPOS | C59: MOVIMIENTO DE TIERRAS Y DEMOLICIONES | E59: COMPACTADOR APISONADOR (CANGURO, SALTARIN) | F59: 7.00 | G59: 4.00 | H59: 3.00 | I59: 1422 | L59: 56
B60: EQUIPOS | C60: MOVIMIENTO DE TIERRAS Y DEMOLICIONES | E60: COMPACTADOR PLACAS VIBRATORIAS (RANA) | F60: 9.00 | G60: 6.00 | H60: 3.00 | I60: 1424 | L60: 57
B61: EQUIPOS | C61: MOVIMIENTO DE TIERRAS Y DEMOLICIONES | E61: COMPRESOR COMBUSTION (DEMOLICION) | F61: 12.00 | G61: 10.00 | H61: 2.00 | I61: 1434 | L61: 58
B62: EQUIPOS | C62: MOVIMIENTO DE TIERRAS Y DEMOLICIONES | E62: COMPRESOR ELECTRICO | F62: 14.00 | G62: 9.00 | H62: 5.00 | I62: 1436 | L62: 59
B63: EQUIPOS | C63: MOVIMIENTO DE TIERRAS Y DEMOLICIONES | E63: COMPRESOR ELECTRICO 120 PSI | F63: 1.00 | G63: 0.00 | H63: 1.00 | I63: 1438 | L63: 60
B64: EQUIPOS | C64: MOVIMIENTO DE TIERRAS Y DEMOLICIONES | E64: COMPRESOR ELECTRICO 150 PSI | F64: 8.00 | G64: 5.00 | H64: 3.00 | I64: 1440 | L64: 61
B65: EQUIPOS | C65: CAMPAMENTO | E65: CONTENEDOR 20 PIES | F65: 9.00 | G65: 6.00 | H65: 3.00 | I65: 1712 | L65: 62
B66: EQUIPOS | C66: CAMPAMENTO | E66: CONTENEDOR 20 PIES TIPO OFICINA | F66: 4.00 | G66: 2.00 | H66: 2.00 | I66: 1714 | L66: 63
B67: EQUIPOS | C67: CAMPAMENTO | E67: CONTENEDOR 40 PIES | F67: 7.00 | G67: 5.00 | H67: 2.00 | I67: 1716 | L67: 64
B68: EQUIPOS | C68: CAMPAMENTO | E68: CONTENEDOR 40 PIES TIPO ENFERMERIA | F68: 1.00 | G68: 0.00 | H68: 1.00 | I68: 1718 | L68: 65
B69: EQUIPOS | C69: MOVIMIENTO DE TIERRAS Y DEMOLICIONES | E69: CORTADORA DE CONCRETO | F69: 2.00 | G69: 1.00 | H69: 1.00 | I69: 2266 | L69: 66
B70: EQUIPOS | C70: DIFERENCIALES | E70: DIFERENCIAL 1.5 TON (CADENA) | F70: 2.00 | G70: 0.00 | H70: 2.00 | I70: 2560 | L70: 67
B71: EQUIPOS | C71: DIFERENCIALES | E71: DIFERENCIAL 10 TON (CADENA) | F71: 32.00 | G71: 23.00 | H71: 9.00 | I71: 2562 | L71: 68
B72: EQUIPOS | C72: DIFERENCIALES | E72: DIFERENCIAL 5 TON (CADENA) | F72: 21.00 | G72: 11.00 | H72: 10.00 | I72: 2568 | L72: 69
B73: EQUIPOS | C73: BOMBAS | E73: ELECTROBOMBA 1" | F73: 6.00 | G73: 5.00 | H73: 1.00 | I73: 2834 | L73: 70
B74: EQUIPOS | C74: BOMBAS | E74: ELECTROBOMBA 1/2" | F74: 1.00 | G74: 0.00 | H74: 1.00 | I74: 2836 | L74: 71
B75: EQUIPOS | C75: BOMBAS | E75: ELECTROBOMBA 3" | F75: 2.00 | G75: 1.00 | H75: 1.00 | I75: 2840 | L75: 72
B76: EQUIPOS | C76: TENSIONAMIENTO EQ | E76: ENFILADORA | F76: 1.00 | G76: 0.00 | H76: 1.00 | I76: 2970 | L76: 73
B77: EQUIPOS | C77: CONSTRUCCION DE ESTRUCTURAS METALICAS | E77: EQUIPO OXICORTE | F77: 26.00 | G77: 17.00 | H77: 9.00 | I77: 3004 | L77: 74
B78: EQUIPOS | C78: CONSTRUCCION DE ESTRUCTURAS METALICAS | E78: EQUIPO RITMO (ATIRANTADOS 108) | F78: 1.00 | G78: 0.00 | H78: 1.00 | I78: 3006 | L78: 75
B79: EQUIPOS | C79: CONSTRUCCION DE ESTRUCTURAS METALICAS | E79: EQUIPO SOLDAR | F79: 56.00 | G79: 48.00 | H79: 8.00 | I79: 3008 | L79: 76
B80: EQUIPOS | C80: EQUIPOS MANUALES Y ELECTRICOS | E80: ESMERIL | F80: 9.00 | G80: 3.00 | H80: 6.00 | I80: 3176 | L80: 77
B81: EQUIPOS | C81: MEDICION Y ENSAYO | E81: ESTACION TOPOGRAFICA (CON BATERIA Y CABLE DE DATOS) | F81: 8.00 | G81: 7.00 | H81: 1.00 | I81: 3238 | L81: 78
B82: EQUIPOS | C82: EQUIPOS MANUALES Y ELECTRICOS | E82: EXTRACTOR AIRE | F82: 23.00 | G82: 12.00 | H82: 11.00 | I82: 3816 | L82: 79
B83: EQUIPOS | C83: EQUIPOS MANUALES Y ELECTRICOS | E83: EXTRACTOR MECANICO | F83: 3.00 | G83: 0.00 | H83: 3.00 | I83: 3822 | L83: 80
B84: EQUIPOS | C84: DIFERENCIALES | E84: GARRUCHA 1.5 TON (PALANCA) | F84: 3.00 | G84: 2.00 | H84: 1.00 | I84: 4960 | L84: 81
B85: EQUIPOS | C85: DIFERENCIALES | E85: GARRUCHA 1.6 TON (PALANCA) | F85: 3.00 | G85: 2.00 | H85: 1.00 | I85: 4962 | L85: 82
B86: EQUIPOS | C86: DIFERENCIALES | E86: GARRUCHA 3.2 TON (PALANCA) | F86: 1.00 | G86: 0.00 | H86: 1.00 | I86: 4964 | L86: 83
B87: EQUIPOS | C87: DIFERENCIALES | E87: GARRUCHA 6 TON (PALANCA) | F87: 132.00 | G87: 105.00 | H87: 27.00 | I87: 4966 | L87: 84
B88: EQUIPOS | C88: DIFERENCIALES | E88: GARRUCHA 6.3 TON (PALANCA) | F88: 2.00 | G88: 1.00 | H88: 1.00 | I88: 4968 | L88: 85
B89: EQUIPOS | C89: DIFERENCIALES | E89: GARRUCHA 750 KG (PALANCA) | F89: 9.00 | G89: 8.00 | H89: 1.00 | I89: 4970 | L89: 86
B90: EQUIPOS | C90: TENSIONAMIENTO EQ | E90: GATO TENSIONAMIENTO 100 TON | F90: 2.00 | G90: 0.00 | H90: 2.00 | I90: 5010 | L90: 87
B91: EQUIPOS | C91: TENSIONAMIENTO EQ | E91: GATO TENSIONAMIENTO 250 TON | F91: 4.00 | G91: 2.00 | H91: 2.00 | I91: 5012 | L91: 88
B92: EQUIPOS | C92: TENSIONAMIENTO EQ | E92: GATO TENSIONAMIENTO 300 TON | F92: 4.00 | G92: 0.00 | H92: 4.00 | I92: 5014 | L92: 89
B93: EQUIPOS | C93: TENSIONAMIENTO EQ | E93: GATO TENSIONAMIENTO 350 TON | F93: 21.00 | G93: 16.00 | H93: 5.00 | I93: 5016 | L93: 90
B94: EQUIPOS | C94: TENSIONAMIENTO EQ | E94: GATO TENSIONAMIENTO MONOTORON | F94: 9.00 | G94: 3.00 | H94: 6.00 | I94: 5020 | L94: 91
B95: EQUIPOS | C95: EQUIPOS MANUALES Y ELECTRICOS | E95: GUADAÑADORA | F95: 1.00 | G95: 0.00 | H95: 1.00 | I95: 5178 | L95: 92
B96: EQUIPOS | C96: BOMBAS | E96: HIDROLAVADORA COMBUSTION | F96: 2.00 | G96: 0.00 | H96: 2.00 | I96: 5338 | L96: 93
B97: EQUIPOS | C97: BOMBAS | E97: HIDROLAVADORA ELECTRICA | F97: 4.00 | G97: 0.00 | H97: 4.00 | I97: 5340 | L97: 94
B98: EQUIPOS | C98: EQUIPOS MANUALES Y ELECTRICOS | E98: INYECTORA GRASA 10 LB | F98: 1.00 | G98: 0.00 | H98: 1.00 | I98: 5508 | L98: 95
B99: EQUIPOS | C99: EQUIPOS MANUALES Y ELECTRICOS | E99: INYECTORA GRASA 30 LB | F99: 5.00 | G99: 3.00 | H99: 2.00 | I99: 5510 | L99: 96
B100: EQUIPOS | C100: MEDICION Y ENSAYO | E100: MANOMETRO 10.000 PSI | F100: 26.00 | G100: 22.00 | H100: 4.00 | I100: 7692 | L100: 97
B101: EQUIPOS | C101: MEDICION Y ENSAYO | E101: MANOMETRO 15.000 PSI | F101: 3.00 | G101: 2.00 | H101: 1.00 | I101: 7696 | L101: 98
B102: EQUIPOS | C102: TENSIONAMIENTO EQ | E102: MAQUINA DE DUCTO | F102: 8.00 | G102: 5.00 | H102: 3.00 | I102: 7742 | L102: 99
B103: EQUIPOS | C103: MEDICION Y ENSAYO | E103: MAQUINA DE ENSAYOS PRENSA CONCRETO | F103: 9.00 | G103: 6.00 | H103: 3.00 | I103: 7744 | L103: 100
B104: EQUIPOS | C104: CONCRETO EQ | E104: MAQUINA PICA HIELO | F104: 1.00 | G104: 0.00 | H104: 1.00 | I104: 7748 | L104: 101
B105: EQUIPOS | C105: TENSIONAMIENTO EQ | E105: MAQUINA PRENSADO DE CONECTORES | F105: 2.00 | G105: 1.00 | H105: 1.00 | I105: 7750 | L105: 102
B106: EQUIPOS | C106: MOVIMIENTO DE TIERRAS Y DEMOLICIONES | E106: MARTILLO CINCELADOR NEUMATICO 4" | F106: 1.00 | G106: 0.00 | H106: 1.00 | I106: 7770 | L106: 103
B107: EQUIPOS | C107: MOVIMIENTO DE TIERRAS Y DEMOLICIONES | E107: MARTILLO DEMOLEDOR ELECTRICO | F107: 7.00 | G107: 6.00 | H107: 1.00 | I107: 7774 | L107: 104
B108: EQUIPOS | C108: MOVIMIENTO DE TIERRAS Y DEMOLICIONES | E108: MARTILLO DEMOLEDOR GASOLINA | F108: 17.00 | G108: 10.00 | H108: 7.00 | I108: 7776 | L108: 105
B109: EQUIPOS | C109: MOVIMIENTO DE TIERRAS Y DEMOLICIONES | E109: MARTILLO DEMOLEDOR NEUMATICO 30 LBS | F109: 1.00 | G109: 0.00 | H109: 1.00 | I109: 7780 | L109: 106
B110: EQUIPOS | C110: MOVIMIENTO DE TIERRAS Y DEMOLICIONES | E110: MARTILLO DEMOLEDOR NEUMATICO 60 LB | F110: 14.00 | G110: 9.00 | H110: 5.00 | I110: 7784 | L110: 107
B111: EQUIPOS | C111: MOVIMIENTO DE TIERRAS Y DEMOLICIONES | E111: MARTILLO DEMOLEDOR NEUMATICO 90 LB | F111: 12.00 | G111: 6.00 | H111: 6.00 | I111: 7786 | L111: 108
B112: EQUIPOS | C112: CONCRETO EQ | E112: MEZCLADORA CONCRETO COMBUSTION | F112: 8.00 | G112: 3.00 | H112: 5.00 | I112: 7856 | L112: 109
B113: EQUIPOS | C113: CONCRETO EQ | E113: MEZCLADORA CONCRETO ELECTRICA | F113: 4.00 | G113: 3.00 | H113: 1.00 | I113: 7858 | L113: 110
B114: EQUIPOS | C114: MOVIMIENTO DE TIERRAS Y DEMOLICIONES | E114: MINICARGADOR | F114: 4.00 | G114: 3.00 | H114: 1.00 | I114: 7890 | L114: 111
B115: EQUIPOS | C115: CONCRETO EQ | E115: MIXER CAMION MEZCLADOR | F115: 6.00 | G115: 3.00 | H115: 3.00 | I115: 7894 | L115: 112
B116: EQUIPOS | C116: BOMBAS | E116: MOTOBOMBA DIESEL 2" | F116: 2.00 | G116: 1.00 | H116: 1.00 | I116: 7932 | L116: 113
B117: EQUIPOS | C117: BOMBAS | E117: MOTOBOMBA DIESEL 4" | F117: 8.00 | G117: 5.00 | H117: 3.00 | I117: 7934 | L117: 114
B118: EQUIPOS | C118: BOMBAS | E118: MOTOBOMBA GASOLINA 2" | F118: 1.00 | G118: 0.00 | H118: 1.00 | I118: 7936 | L118: 115
B119: EQUIPOS | C119: BOMBAS | E119: MOTOBOMBA GASOLINA 3" | F119: 3.00 | G119: 2.00 | H119: 1.00 | I119: 7938 | L119: 116
B120: EQUIPOS | C120: BOMBAS | E120: MOTOBOMBA GASOLINA 4" | F120: 6.00 | G120: 4.00 | H120: 2.00 | I120: 7940 | L120: 117
B121: EQUIPOS | C121: CONCRETO EQ | E121: MOTOCOMPRESOR AIRE DE CAUDAL 30 HP / PLANTA DE CONCRETO | F121: 2.00 | G121: 1.00 | H121: 1.00 | I121: 7942 | L121: 118
B122: EQUIPOS | C122: MOTORES Y REDUCTORES | E122: MOTOR A GASOLINA 3 HP HORIZONTAL | F122: 1.00 | G122: 0.00 | H122: 1.00 | I122: 7944 | L122: 119
B123: EQUIPOS | C123: MOTORES Y REDUCTORES | E123: MOTOR A GASOLINA 8,5 HP HORIZONTAL | F123: 3.00 | G123: 2.00 | H123: 1.00 | I123: 7948 | L123: 120
B124: EQUIPOS | C124: MOTORES Y REDUCTORES | E124: MOTOR DIESEL | F124: 10.00 | G124: 8.00 | H124: 2.00 | I124: 7970 | L124: 121
B125: EQUIPOS | C125: MOTORES Y REDUCTORES | E125: MOTOR ELECTRICO | F125: 10.00 | G125: 3.00 | H125: 7.00 | I125: 7972 | L125: 122
B126: EQUIPOS | C126: MOTORES Y REDUCTORES | E126: MOTOR ELECTRICO 2 HP | F126: 1.00 | G126: 0.00 | H126: 1.00 | I126: 7974 | L126: 123
B127: EQUIPOS | C127: MOTORES Y REDUCTORES | E127: MOTOR ELECTRICO 5 HP | F127: 4.00 | G127: 1.00 | H127: 3.00 | I127: 7976 | L127: 124
B128: EQUIPOS | C128: MOTORES Y REDUCTORES | E128: MOTOR FUERA DE BORDA | F128: 3.00 | G128: 2.00 | H128: 1.00 | I128: 7988 | L128: 125
B129: EQUIPOS | C129: MOTORES Y REDUCTORES | E129: MOTOREDUCTOR | F129: 2.00 | G129: 0.00 | H129: 2.00 | I129: 7998 | L129: 126
B130: EQUIPOS | C130: EQUIPOS MANUALES Y ELECTRICOS | E130: MOTORTOOL | F130: 9.00 | G130: 5.00 | H130: 4.00 | I130: 8000 | L130: 127
B131: EQUIPOS | C131: EQUIPOS MANUALES Y ELECTRICOS | E131: MOTOSIERRA | F131: 5.00 | G131: 2.00 | H131: 3.00 | I131: 8002 | L131: 128
B132: EQUIPOS | C132: CONSTRUCCION DE ESTRUCTURAS METALICAS | E132: MOTOSOLDADOR 400 AMP | F132: 4.00 | G132: 3.00 | H132: 1.00 | I132: 8006 | L132: 129
B133: EQUIPOS | C133: MEDICION Y ENSAYO | E133: NIVEL TOPOGRAFICO DIGITAL | F133: 12.00 | G133: 9.00 | H133: 3.00 | I133: 8288 | L133: 130
B134: EQUIPOS | C134: EQUIPOS MANUALES Y ELECTRICOS | E134: PISTOLA FIJACION CHAZO | F134: 2.00 | G134: 0.00 | H134: 2.00 | I134: 9158 | L134: 131
B135: EQUIPOS | C135: GENERADOR DE ENERGIA | E135: PLANTA ELECTRICA 100 KVA | F135: 4.00 | G135: 3.00 | H135: 1.00 | I135: 9242 | L135: 132
B136: EQUIPOS | C136: GENERADOR DE ENERGIA | E136: PLANTA ELECTRICA 117,5 KVA | F136: 3.00 | G136: 2.00 | H136: 1.00 | I136: 9244 | L136: 133
B137: EQUIPOS | C137: GENERADOR DE ENERGIA | E137: PLANTA ELECTRICA 128 KVA | F137: 1.00 | G137: 0.00 | H137: 1.00 | I137: 9248 | L137: 134
B138: EQUIPOS | C138: GENERADOR DE ENERGIA | E138: PLANTA ELECTRICA 2,5 KVA | F138: 1.00 | G138: 0.00 | H138: 1.00 | I138: 9254 | L138: 135
B139: EQUIPOS | C139: GENERADOR DE ENERGIA | E139: PLANTA ELECTRICA 20 KVA | F139: 2.00 | G139: 0.00 | H139: 2.00 | I139: 9256 | L139: 136
B140: EQUIPOS | C140: GENERADOR DE ENERGIA | E140: PLANTA ELECTRICA 21 KVA | F140: 2.00 | G140: 1.00 | H140: 1.00 | I140: 9258 | L140: 137
B141: EQUIPOS | C141: GENERADOR DE ENERGIA | E141: PLANTA ELECTRICA 3,75 KVA | F141: 2.00 | G141: 1.00 | H141: 1.00 | I141: 9260 | L141: 138
B142: EQUIPOS | C142: GENERADOR DE ENERGIA | E142: PLANTA ELECTRICA 32 KVA | F142: 3.00 | G142: 2.00 | H142: 1.00 | I142: 9262 | L142: 139
B143: EQUIPOS | C143: GENERADOR DE ENERGIA | E143: PLANTA ELECTRICA 4,8 KVA | F143: 2.00 | G143: 1.00 | H143: 1.00 | I143: 9264 | L143: 140
B144: EQUIPOS | C144: GENERADOR DE ENERGIA | E144: PLANTA ELECTRICA 5 KVA | F144: 2.00 | G144: 1.00 | H144: 1.00 | I144: 9266 | L144: 141
B145: EQUIPOS | C145: GENERADOR DE ENERGIA | E145: PLANTA ELECTRICA 56 KVA | F145: 4.00 | G145: 3.00 | H145: 1.00 | I145: 9270 | L145: 142
B146: EQUIPOS | C146: GENERADOR DE ENERGIA | E146: PLANTA ELECTRICA 65 KVA | F146: 6.00 | G146: 5.00 | H146: 1.00 | I146: 9274 | L146: 143
B147: EQUIPOS | C147: GENERADOR DE ENERGIA | E147: PLANTA ELECTRICA 69 KVA | F147: 3.00 | G147: 2.00 | H147: 1.00 | I147: 9276 | L147: 144
B148: EQUIPOS | C148: GENERADOR DE ENERGIA | E148: PLANTA ELECTRICA 7,1 KVA | F148: 4.00 | G148: 3.00 | H148: 1.00 | I148: 9278 | L148: 145
B149: EQUIPOS | C149: GENERADOR DE ENERGIA | E149: PLANTA ELECTRICA 70 KVA | F149: 3.00 | G149: 2.00 | H149: 1.00 | I149: 9280 | L149: 146
B150: EQUIPOS | C150: GENERADOR DE ENERGIA | E150: PLANTA ELECTRICA 75 KVA | F150: 6.00 | G150: 5.00 | H150: 1.00 | I150: 9282 | L150: 147
B151: EQUIPOS | C151: IZAJE DE MATERIALES | E151: PLUMA GRUA 200 KG | F151: 2.00 | G151: 1.00 | H151: 1.00 | I151: 9446 | L151: 148
B152: EQUIPOS | C152: IZAJE DE MATERIALES | E152: PLUMA GRUA 300 KG | F152: 1.00 | G152: 0.00 | H152: 1.00 | I152: 9448 | L152: 149
B153: EQUIPOS | C153: CONCRETO EQ | E153: POWER BUGGY 21 PIES CUBICOS | F153: 1.00 | G153: 0.00 | H153: 1.00 | I153: 9596 | L153: 150
B154: EQUIPOS | C154: EQUIPOS MANUALES Y ELECTRICOS | E154: PRENSA DE BANCO | F154: 18.00 | G154: 8.00 | H154: 10.00 | I154: 9608 | L154: 151
B155: EQUIPOS | C155: EQUIPOS MANUALES Y ELECTRICOS | E155: PULIDORA 4-1/2" | F155: 19.00 | G155: 15.00 | H155: 4.00 | I155: 9680 | L155: 152
B156: EQUIPOS | C156: EQUIPOS MANUALES Y ELECTRICOS | E156: PULIDORA 5" | F156: 4.00 | G156: 2.00 | H156: 2.00 | I156: 9682 | L156: 153
B157: EQUIPOS | C157: EQUIPOS MANUALES Y ELECTRICOS | E157: PULIDORA 9" | F157: 106.00 | G157: 94.00 | H157: 12.00 | I157: 9686 | L157: 154
B158: EQUIPOS | C158: EQUIPOS MANUALES Y ELECTRICOS | E158: PULIDORA HIZONTAL (LIJADORA 4") | F158: 1.00 | G158: 0.00 | H158: 1.00 | I158: 9688 | L158: 155
B159: EQUIPOS | C159: MOVIMIENTO DE TIERRAS Y DEMOLICIONES | E159: QUEBRANTADOR TIPO DARDA | F159: 3.00 | G159: 2.00 | H159: 1.00 | I159: 9778 | L159: 156
B160: EQUIPOS | C160: MOVIMIENTO DE TIERRAS Y DEMOLICIONES | E160: RETROCARGADOR | F160: 8.00 | G160: 5.00 | H160: 3.00 | I160: 10758 | L160: 157
B161: EQUIPOS | C161: EQUIPOS MANUALES Y ELECTRICOS | E161: SIERRA DE BANCO | F161: 10.00 | G161: 5.00 | H161: 5.00 | I161: 11644 | L161: 158
B162: EQUIPOS | C162: EQUIPOS MANUALES Y ELECTRICOS | E162: SIERRA ELECTRICA MANUAL | F162: 36.00 | G162: 23.00 | H162: 13.00 | I162: 11646 | L162: 159
B163: EQUIPOS | C163: CONCRETO EQ | E163: SILO MOVIL VERTICAL 40 TON | F163: 2.00 | G163: 1.00 | H163: 1.00 | I163: 11760 | L163: 160
B164: EQUIPOS | C164: CONCRETO EQ | E164: SILO MOVIL VERTICAL 70 TON | F164: 2.00 | G164: 1.00 | H164: 1.00 | I164: 11762 | L164: 161
B165: EQUIPOS | C165: TRANSFORMADORES Y DISTRIBUIDORES DE CORRIENTE | E165: TABLERO ELECTRICO MOVIL | F165: 60.00 | G165: 47.00 | H165: 13.00 | I165: 12026 | L165: 162
B166: EQUIPOS | C166: EQUIPOS MANUALES Y ELECTRICOS | E166: TALADRO DE ARBOL | F166: 3.00 | G166: 1.00 | H166: 2.00 | I166: 12050 | L166: 163
B167: EQUIPOS | C167: EQUIPOS MANUALES Y ELECTRICOS | E167: TALADRO ELECTRICO | F167: 33.00 | G167: 25.00 | H167: 8.00 | I167: 12052 | L167: 164
B168: EQUIPOS | C168: MOVIMIENTO DE TIERRAS Y DEMOLICIONES | E168: TALADRO PERCUTOR ELECTRICO (DEMOLICION) | F168: 26.00 | G168: 20.00 | H168: 6.00 | I168: 12054 | L168: 165
B169: EQUIPOS | C169: MOVIMIENTO DE TIERRAS Y DEMOLICIONES | E169: TALADRO SACANUCLEOS | F169: 3.00 | G169: 2.00 | H169: 1.00 | I169: 12056 | L169: 166
B170: EQUIPOS | C170: IZAJE DE MATERIALES | E170: TELEFERICO | F170: 3.00 | G170: 1.00 | H170: 2.00 | I170: 12342 | L170: 167
B171: EQUIPOS | C171: MEDICION Y ENSAYO | E171: TEODOLITO | F171: 2.00 | G171: 0.00 | H171: 2.00 | I171: 12374 | L171: 168
B172: EQUIPOS | C172: DIFERENCIALES | E172: TIRFOR | F172: 1.00 | G172: 0.00 | H172: 1.00 | I172: 12568 | L172: 169
B173: EQUIPOS | C173: DIFERENCIALES | E173: TIRFOR 3.2 TON | F173: 4.00 | G173: 1.00 | H173: 3.00 | I173: 12572 | L173: 170
B174: EQUIPOS | C174: GENERADOR DE ENERGIA | E174: TORRE ILUMINACION | F174: 14.00 | G174: 12.00 | H174: 2.00 | I174: 13322 | L174: 171
B175: EQUIPOS | C175: GENERADOR DE ENERGIA | E175: TORRE ILUMINACION 3.3 KW | F175: 2.00 | G175: 1.00 | H175: 1.00 | I175: 13324 | L175: 172
B176: EQUIPOS | C176: GENERADOR DE ENERGIA | E176: TRAILER PARA PLANTA ELECTRICA | F176: 1.00 | G176: 0.00 | H176: 1.00 | I176: 13348 | L176: 173
B177: EQUIPOS | C177: TRANSFORMADORES Y DISTRIBUIDORES DE CORRIENTE | E177: TRANSFORMADOR 150 KVA | F177: 1.00 | G177: 0.00 | H177: 1.00 | I177: 13366 | L177: 174
B178: EQUIPOS | C178: EQUIPOS MANUALES Y ELECTRICOS | E178: TRONZADORA 14" MANUAL | F178: 16.00 | G178: 11.00 | H178: 5.00 | I178: 13434 | L178: 175
B179: EQUIPOS | C179: VIBRADORES | E179: VIBRADOR AGUJA ELECTRICO | F179: 154.00 | G179: 101.00 | H179: 53.00 | L179: 176
B180: EQUIPOS | C180: VIBRADORES | E180: VIBRADOR AGUJA GASOLINA | F180: 7.00 | G180: 2.00 | H180: 5.00 | L180: 177
B181: EQUIPOS | C181: VIBRADORES | E181: VIBRADOR PARED ELECTRICO | F181: 39.00 | G181: 16.00 | H181: 23.00 | L181: 178
B182: EQUIPOS | C182: MOVIMIENTO DE TIERRAS Y DEMOLICIONES | E182: VIBROCOMPACTADOR DOBLE RODILLO CONDUC. DE PIE | F182: 9.00 | G182: 7.00 | H182: 2.00 | L182: 179
B183: EQUIPOS | C183: MOVIMIENTO DE TIERRAS Y DEMOLICIONES | E183: VIBROCOMPACTADOR DOBLE RODILLO CONDUC. MONTADO | F183: 4.00 | G183: 3.00 | H183: 1.00 | L183: 180
B184: EQUIPOS | C184: EQUIPOS ESPECIALES | E184: VIGA LANZAMIENTO | F184: 1.00 | G184: 0.00 | H184: 1.00 | L184: 181
B185: EQUIPOS | C185: VEHICULOS | E185: VOLQUETA | F185: 5.00 | G185: 4.00 | H185: 1.00 | L185: 182
B186: EQUIPOS | C186: DIFERENCIALES | E186: WINCHE 3HP | F186: 4.00 | G186: 2.00 | H186: 2.00 | L186: 183
B187: ESTRUCTURAS | C187: VIGA DE LANZAMIENTO | E187: Platinas 1-1/4" X 16 CM X 16 CM | F187: 1.00 | G187: 0.00 | H187: 1.00 | I187: 9378 | L187: 184
B188: FORMALETA | C188: FORMALETA | E188: FORMALETA 1000X500 FR-TA2 | F188: 67.00 | G188: 36.00 | H188: 31.00 | I188: 4768 | L188: 185
B189: FORMALETA | C189: FORMALETA | E189: FORMALETA 1000X600 FR-TD5 | F189: 8.00 | G189: 4.00 | H189: 4.00 | I189: 4770 | L189: 186
B190: FORMALETA | C190: FORMALETA | E190: FORMALETA 1100X500 FR-TA12 | F190: 104.00 | G190: 20.00 | H190: 84.00 | I190: 4772 | L190: 187
B191: FORMALETA | C191: FORMALETA | E191: FORMALETA 1200X500 FR-TA3 | F191: 108.00 | G191: 98.00 | H191: 10.00 | I191: 4776 | L191: 188
B192: FORMALETA | C192: FORMALETA | E192: FORMALETA 1200X600 FE-TC14 | F192: 144.00 | G192: 12.00 | H192: 132.00 | I192: 4778 | L192: 189
B193: FORMALETA | C193: FORMALETA | E193: FORMALETA 1200X600 FR-TB1 | F193: 114.00 | G193: 102.00 | H193: 12.00 | I193: 4780 | L193: 190
B194: FORMALETA | C194: FORMALETA | E194: FORMALETA 1300X500 FR-TA13 | F194: 31.00 | G194: 0.00 | H194: 31.00 | I194: 4784 | L194: 191
B195: FORMALETA | C195: FORMALETA | E195: FORMALETA 1500X1000 FR-TD3 | F195: 10.00 | G195: 0.00 | H195: 10.00 | I195: 4790 | L195: 192
B196: FORMALETA | C196: FORMALETA | E196: FORMALETA 1500X500 FR-TA4 | F196: 406.00 | G196: 206.00 | H196: 200.00 | I196: 4794 | L196: 193
B197: FORMALETA | C197: FORMALETA | E197: FORMALETA 1500X600 FR-TB2 | F197: 64.00 | G197: 60.00 | H197: 4.00 | I197: 4796 | L197: 194
B198: FORMALETA | C198: FORMALETA | E198: FORMALETA 1600X500 FR-TA11 | F198: 77.00 | G198: 20.00 | H198: 57.00 | I198: 4798 | L198: 195
B199: FORMALETA | C199: FORMALETA | E199: FORMALETA 2000X500 FR-TA5 | F199: 105.00 | G199: 215.00 | H199: -110.00 | I199: 4810 | L199: 196
B200: FORMALETA | C200: FORMALETA | E200: FORMALETA 2400X500 FR-TA6 | F200: 474.00 | G200: 221.00 | H200: 253.00 | I200: 4822 | L200: 197
B201: FORMALETA | C201: FORMALETA | E201: FORMALETA 2400X600 FR-TB3 | F201: 1.00 | G201: 0.00 | H201: 1.00 | I201: 4824 | L201: 198
... 1312 more rows
